[Event "*** Titled Tuesday 3|2 Blitz"]
[Site "Chess.com"]
[Date "2017.06.06"]
[Round "5"]
[White "GianmarcoVaR"]
[Black "anon102030"]
[Result "0-1"]
[WhiteElo "2445"]
[BlackElo "2587"]
[TimeControl "180+2"]
[EndTime "14:53:20 PDT"]
[Termination "anon102030 won by checkmate"]

1. d4 {[%clk 0:03:02]} 1... Nf6 {[%clk 0:03:00.4]} 2. c4 {[%clk 0:03:01.1]} 2...
e5 {[%clk 0:03:01.1]} 3. dxe5 {[%clk 0:03:01.3]} 3... Ng4 {[%clk 0:03:02.3]} 4.
Nf3 {[%clk 0:03:01.8]} 4... Nc6 {[%clk 0:03:01.3]} 5. Bf4 {[%clk 0:03:01.8]}
5... Bb4+ {[%clk 0:03:02.4]} 6. Nbd2 {[%clk 0:03:01.6]} 6... Qe7 {[%clk
0:03:04.3]} 7. e3 {[%clk 0:02:55.6]} 7... Ngxe5 {[%clk 0:03:02.5]} 8. Nxe5
{[%clk 0:02:55.8]} 8... Nxe5 {[%clk 0:03:04.4]} 9. Be2 {[%clk 0:02:56.7]} 9...
d6 {[%clk 0:03:03.9]} 10. a3 {[%clk 0:02:44.7]} 10... Bxd2+ {[%clk 0:03:02.1]}
11. Qxd2 {[%clk 0:02:45.1]} 11... b6 {[%clk 0:02:58.1]} 12. O-O {[%clk
0:02:35.9]} 12... Bb7 {[%clk 0:02:55.4]} 13. b4 {[%clk 0:02:20.4]} 13... O-O
{[%clk 0:02:14.3]} 14. Bg3 {[%clk 0:02:06.2]} 14... Qe6 {[%clk 0:02:09.9]} 15.
c5 {[%clk 0:02:02.4]} 15... dxc5 {[%clk 0:02:06]} 16. bxc5 {[%clk 0:02:04.3]}
16... Qc6 {[%clk 0:01:54.7]} 17. f3 {[%clk 0:01:44.5]} 17... Qxc5 {[%clk
0:01:48.9]} 18. Rfc1 {[%clk 0:01:40.5]} 18... Qe7 {[%clk 0:01:45]} 19. Qc3
{[%clk 0:01:29.3]} 19... Nc6 {[%clk 0:01:44.1]} 20. Bb5 {[%clk 0:01:29]} 20...
Na5 {[%clk 0:01:36.8]} 21. Bxc7 {[%clk 0:01:27.8]} 21... Bxf3 {[%clk 0:01:26.2]}
22. Bg3 {[%clk 0:00:17.8]} 22... Bb7 {[%clk 0:01:19.3]} 23. Qb4 {[%clk 0:00:16]}
23... Qxb4 {[%clk 0:01:05.2]} 24. axb4 {[%clk 0:00:17]} 24... Nb3 {[%clk
0:01:07.1]} 25. Rc7 {[%clk 0:00:18]} 25... Nxa1 {[%clk 0:01:04]} 26. Rxb7 {[%clk
0:00:19.2]} 26... Nc2 {[%clk 0:01:03.5]} 27. Kf2 {[%clk 0:00:17.9]} 27... Rfc8
{[%clk 0:00:52.8]} 28. Bd6 {[%clk 0:00:17.9]} 28... Rc3 {[%clk 0:00:47]} 29. Re7
{[%clk 0:00:11.1]} 29... Rd8 {[%clk 0:00:35.1]} 30. Bf4 {[%clk 0:00:07.6]} 30...
h6 {[%clk 0:00:33.6]} 31. h4 {[%clk 0:00:04.9]} 31... Nxb4 {[%clk 0:00:31.1]}
32. Rxa7 {[%clk 0:00:05.6]} 32... Nd3+ {[%clk 0:00:29.8]} 33. Bxd3 {[%clk
0:00:03.5]} 33... Rdxd3 {[%clk 0:00:31.7]} 34. Rb7 {[%clk 0:00:03.3]} 34... Rb3
{[%clk 0:00:32.1]} 35. Rb8+ {[%clk 0:00:04.7]} 35... Kh7 {[%clk 0:00:32.4]} 36.
h5 {[%clk 0:00:06.6]} 36... Rd2+ {[%clk 0:00:32.7]} 37. Kf3 {[%clk 0:00:07.4]}
37... f5 {[%clk 0:00:32.6]} 38. Rb7 {[%clk 0:00:07.1]} 38... Rbb2 {[%clk
0:00:28.6]} 39. Bg3 {[%clk 0:00:03.1]} 39... Rxg2 {[%clk 0:00:27.9]} 40. Rf7
{[%clk 0:00:04.2]} 40... b5 {[%clk 0:00:20.6]} 41. Rxf5 {[%clk 0:00:05.6]} 41...
b4 {[%clk 0:00:22.2]} 42. Rb5 {[%clk 0:00:04.3]} 42... b3 {[%clk 0:00:21.9]} 43.
Rb7 {[%clk 0:00:03.1]} 43... Rg1 {[%clk 0:00:21.5]} 44. Be5 {[%clk 0:00:03.6]}
44... Rbb1 {[%clk 0:00:21.3]} 45. Bf6 {[%clk 0:00:03.1]} 45... Rbf1+ {[%clk
0:00:19.6]} 46. Ke4 {[%clk 0:00:02.8]} 46... Rxf6 {[%clk 0:00:21.5]} 47. Rxb3
{[%clk 0:00:03.7]} 47... Rh1 {[%clk 0:00:21.6]} 48. Rb5 {[%clk 0:00:04.7]} 48...
Re6+ {[%clk 0:00:22.4]} 49. Kf4 {[%clk 0:00:06.1]} 49... Rh4+ {[%clk 0:00:23.2]}
50. Kg3 {[%clk 0:00:07.4]} 50... Rhe4 {[%clk 0:00:24.5]} 51. Rc5 {[%clk
0:00:06.8]} 51... Rxe3+ {[%clk 0:00:25]} 52. Kg2 {[%clk 0:00:08.2]} 52... R3e5
{[%clk 0:00:25.9]} 53. Rc8 {[%clk 0:00:07.9]} 53... Rxh5 {[%clk 0:00:26.3]} 54.
Rc7 {[%clk 0:00:09.8]} 54... Rf5 {[%clk 0:00:26.8]} 55. Kg3 {[%clk 0:00:11]}
55... Rg6+ {[%clk 0:00:27.6]} 56. Kh3 {[%clk 0:00:12.3]} 56... Rh5# {[%clk
0:00:28.4]} 0-1

[Event "*** Titled Tuesday 3|2 Blitz"]
[Site "Chess.com"]
[Date "2017.06.06"]
[Round "5"]
[White "kikydu96"]
[Black "ehrenfeld"]
[Result "1-0"]
[WhiteElo "2321"]
[BlackElo "2378"]
[TimeControl "180+2"]
[EndTime "14:53:26 PDT"]
[Termination "kikydu96 won by resignation"]

1. e4 {[%clk 0:03:02]} 1... d6 {[%clk 0:03:00]} 2. d4 {[%clk 0:03:02.3]} 2... g6
{[%clk 0:03:01.2]} 3. Nc3 {[%clk 0:03:03.7]} 3... Bg7 {[%clk 0:03:02]} 4. Be3
{[%clk 0:03:03.5]} 4... a6 {[%clk 0:03:03]} 5. f3 {[%clk 0:03:01.6]} 5... b5
{[%clk 0:03:03.2]} 6. Qd2 {[%clk 0:03:02.5]} 6... Bb7 {[%clk 0:03:03.5]} 7.
O-O-O {[%clk 0:03:00.2]} 7... Nd7 {[%clk 0:03:04.2]} 8. h4 {[%clk 0:03:00.7]}
8... h5 {[%clk 0:03:04.8]} 9. Nh3 {[%clk 0:03:01.2]} 9... Ngf6 {[%clk
0:03:05.5]} 10. Ng5 {[%clk 0:03:00.3]} 10... e6 {[%clk 0:03:06.1]} 11. g3 {[%clk
0:02:46.9]} 11... Qe7 {[%clk 0:03:04.5]} 12. Bh3 {[%clk 0:02:43.7]} 12... Nb6
{[%clk 0:03:04.3]} 13. Kb1 {[%clk 0:02:26.7]} 13... Nc4 {[%clk 0:03:04.2]} 14.
Qe2 {[%clk 0:02:27.8]} 14... Nxe3 {[%clk 0:03:03.9]} 15. Qxe3 {[%clk 0:02:29.7]}
15... Nd7 {[%clk 0:02:58.8]} 16. Ne2 {[%clk 0:02:26]} 16... c5 {[%clk 0:02:50]}
17. dxc5 {[%clk 0:02:14.1]} 17... Nxc5 {[%clk 0:02:50.5]} 18. Nf4 {[%clk
0:02:12.7]} 18... O-O {[%clk 0:02:33.5]} 19. Rd2 {[%clk 0:02:09.4]} 19... Rac8
{[%clk 0:02:28.6]} 20. Rhd1 {[%clk 0:02:09.5]} 20... Rfd8 {[%clk 0:02:26.4]} 21.
c3 {[%clk 0:01:59.4]} 21... a5 {[%clk 0:02:25.4]} 22. Bf1 {[%clk 0:01:36]} 22...
b4 {[%clk 0:02:24.1]} 23. cxb4 {[%clk 0:01:36.3]} 23... axb4 {[%clk 0:02:24.8]}
24. Bc4 {[%clk 0:01:37.7]} 24... Na4 {[%clk 0:02:16.7]} 25. Nxg6 {[%clk
0:01:16.2]} 25... fxg6 {[%clk 0:02:10.2]} 26. Bxe6+ {[%clk 0:01:16.9]} 26... Kh8
{[%clk 0:02:09.3]} 27. Nf7+ {[%clk 0:01:07.8]} 27... Kh7 {[%clk 0:02:09.8]} 28.
Ng5+ {[%clk 0:01:01]} 28... Kh8 {[%clk 0:02:09.8]} 29. Nf7+ {[%clk 0:00:37]}
29... Kh7 {[%clk 0:02:08.9]} 30. Ng5+ {[%clk 0:00:37.2]} 30... Kh8 {[%clk
0:02:09.7]} 31. g4 {[%clk 0:00:37.7]} 31... Rf8 {[%clk 0:01:19.4]} 32. gxh5
{[%clk 0:00:36.3]} 32... Nc3+ {[%clk 0:01:04.3]} 33. bxc3 {[%clk 0:00:33.3]}
33... bxc3 {[%clk 0:01:04.6]} 34. Rc2 {[%clk 0:00:31.6]} 34... Rb8 {[%clk
0:00:57]} 35. Ka1 {[%clk 0:00:30.8]} 35... Bc6 {[%clk 0:00:38.9]} 36. h6 {[%clk
0:00:26.4]} 36... Be5 {[%clk 0:00:37.2]} 37. Rxc3 {[%clk 0:00:21.1]} 37... Qf6
{[%clk 0:00:37.8]} 38. Rc1 {[%clk 0:00:18.2]} 38... Be8 {[%clk 0:00:30.2]} 39.
a3 {[%clk 0:00:15.1]} 39... Bf4 {[%clk 0:00:27.9]} 40. Qe1 {[%clk 0:00:10.9]}
40... Bxc1 {[%clk 0:00:27]} 41. Qxc1 {[%clk 0:00:12.3]} 41... Ba4 {[%clk
0:00:26.3]} 42. Ka2 {[%clk 0:00:12.2]} 42... Rb7 {[%clk 0:00:25.6]} 43. Rc7
{[%clk 0:00:12]} 43... Rxc7 {[%clk 0:00:20.9]} 44. Qxc7 {[%clk 0:00:13.9]} 44...
Bd7 {[%clk 0:00:08.2]} 45. Qxd7 {[%clk 0:00:13.7]} 45... Rf7 {[%clk 0:00:07.6]}
46. Nxf7+ {[%clk 0:00:11.6]} 46... Kh7 {[%clk 0:00:07.8]} 47. Ng5+ {[%clk
0:00:12.3]} 1-0

[Event "*** Titled Tuesday 3|2 Blitz"]
[Site "Chess.com"]
[Date "2017.06.06"]
[Round "5"]
[White "Hikaru"]
[Black "sergiochess83"]
[Result "1-0"]
[WhiteElo "2912"]
[BlackElo "2636"]
[TimeControl "180+2"]
[EndTime "14:53:29 PDT"]
[Termination "Hikaru won on time"]

1. e4 {[%clk 0:02:59.2]} 1... e5 {[%clk 0:02:56.7]} 2. Nf3 {[%clk 0:02:59.8]}
2... Nc6 {[%clk 0:02:57.9]} 3. Bc4 {[%clk 0:03:01.7]} 3... Bc5 {[%clk
0:02:58.6]} 4. O-O {[%clk 0:03:01.5]} 4... Nf6 {[%clk 0:02:59.2]} 5. d3 {[%clk
0:03:01.6]} 5... O-O {[%clk 0:02:58.1]} 6. Re1 {[%clk 0:03:00.2]} 6... a6 {[%clk
0:02:56.5]} 7. h3 {[%clk 0:02:57.9]} 7... d6 {[%clk 0:02:52.5]} 8. c3 {[%clk
0:02:58.5]} 8... Ba7 {[%clk 0:02:36.1]} 9. Bb3 {[%clk 0:02:53.6]} 9... Ne7
{[%clk 0:02:33.6]} 10. d4 {[%clk 0:02:52.4]} 10... Ng6 {[%clk 0:02:30.3]} 11.
Nbd2 {[%clk 0:02:53.1]} 11... h6 {[%clk 0:02:06.4]} 12. Nf1 {[%clk 0:02:52.2]}
12... Re8 {[%clk 0:02:03.1]} 13. Ng3 {[%clk 0:02:51.9]} 13... Bd7 {[%clk
0:02:03.8]} 14. Bc2 {[%clk 0:02:49.6]} 14... Bc6 {[%clk 0:02:01.2]} 15. Be3
{[%clk 0:02:46]} 15... exd4 {[%clk 0:01:37.5]} 16. Bxd4 {[%clk 0:02:47.9]} 16...
Ne5 {[%clk 0:01:38]} 17. Bxa7 {[%clk 0:02:42.9]} 17... Rxa7 {[%clk 0:01:38.8]}
18. Nd4 {[%clk 0:02:42.3]} 18... Bd7 {[%clk 0:01:31.9]} 19. f4 {[%clk
0:02:41.2]} 19... Ng6 {[%clk 0:01:25.6]} 20. Qd2 {[%clk 0:02:40.4]} 20... Ra8
{[%clk 0:01:25.9]} 21. Rad1 {[%clk 0:02:40.3]} 21... Nh7 {[%clk 0:00:52.4]} 22.
Nf3 {[%clk 0:02:34.1]} 22... Bc6 {[%clk 0:00:49.3]} 23. Bb3 {[%clk 0:02:25.9]}
23... Qe7 {[%clk 0:00:43.2]} 24. Qe3 {[%clk 0:02:05.6]} 24... Rad8 {[%clk
0:00:41.2]} 25. Nf5 {[%clk 0:02:06.4]} 25... Qf8 {[%clk 0:00:42.2]} 26. Ng3
{[%clk 0:01:56.8]} 26... Nf6 {[%clk 0:00:41.5]} 27. Rd4 {[%clk 0:01:52.4]} 27...
Nxe4 {[%clk 0:00:33.5]} 28. Nxe4 {[%clk 0:01:50.4]} 28... d5 {[%clk 0:00:34.8]}
29. f5 {[%clk 0:01:49]} 29... Ne5 {[%clk 0:00:25.8]} 30. Nxe5 {[%clk 0:00:48.3]}
30... Rxe5 {[%clk 0:00:27.7]} 31. Nf6+ {[%clk 0:00:50.2]} 31... gxf6 {[%clk
0:00:28]} 32. Qg3+ {[%clk 0:00:51.4]} 32... Kh7 {[%clk 0:00:24.6]} 33. Rxe5
{[%clk 0:00:52]} 33... fxe5 {[%clk 0:00:26.5]} 34. Qxe5 {[%clk 0:00:52.1]} 34...
Qd6 {[%clk 0:00:25.4]} 35. Qxd6 {[%clk 0:00:52.2]} 35... Rxd6 {[%clk 0:00:26.1]}
36. Kf2 {[%clk 0:00:54.1]} 36... Kg7 {[%clk 0:00:23.4]} 37. Ke3 {[%clk
0:00:53.9]} 37... Kf6 {[%clk 0:00:23.6]} 38. Kf4 {[%clk 0:00:54.7]} 38... Rd8
{[%clk 0:00:22.5]} 39. g4 {[%clk 0:00:55]} 39... Ke7 {[%clk 0:00:15.4]} 40. h4
{[%clk 0:00:51.5]} 40... f6 {[%clk 0:00:15.6]} 41. Rd2 {[%clk 0:00:51.5]} 41...
Kd6 {[%clk 0:00:14.5]} 42. c4 {[%clk 0:00:50.8]} 42... Re8 {[%clk 0:00:06.3]}
43. cxd5 {[%clk 0:00:51.2]} 43... Bd7 {[%clk 0:00:07.6]} 44. Rf2 {[%clk
0:00:47.2]} 44... Re5 {[%clk 0:00:06.5]} 45. Bc2 {[%clk 0:00:44.3]} 45... Rxd5
{[%clk 0:00:06]} 46. g5 {[%clk 0:00:45.3]} 46... hxg5+ {[%clk 0:00:06.2]} 47.
hxg5 {[%clk 0:00:47.2]} 47... fxg5+ {[%clk 0:00:07.4]} 48. Kxg5 {[%clk
0:00:49.1]} 48... c5 {[%clk 0:00:07.6]} 49. Kg6 {[%clk 0:00:48.6]} 49... Rd4
{[%clk 0:00:07.5]} 50. f6 {[%clk 0:00:48.1]} 50... Rg4+ {[%clk 0:00:08.4]} 51.
Kh6 {[%clk 0:00:44.9]} 51... Be6 {[%clk 0:00:02.8]} 52. Bf5 {[%clk 0:00:45]} 1-0

[Event "*** Titled Tuesday 3|2 Blitz"]
[Site "Chess.com"]
[Date "2017.06.06"]
[Round "5"]
[White "Zufi1811"]
[Black "TenisMaster"]
[Result "0-1"]
[WhiteElo "2357"]
[BlackElo "2669"]
[TimeControl "180+2"]
[EndTime "14:53:43 PDT"]
[Termination "TenisMaster won on time"]

1. e4 {[%clk 0:03:02]} 1... e5 {[%clk 0:02:55.6]} 2. Nf3 {[%clk 0:03:02.6]} 2...
Nc6 {[%clk 0:02:56.5]} 3. Bb5 {[%clk 0:03:04]} 3... a6 {[%clk 0:02:47.1]} 4. Ba4
{[%clk 0:03:04.7]} 4... Nf6 {[%clk 0:02:47.6]} 5. O-O {[%clk 0:03:06.1]} 5...
Bc5 {[%clk 0:02:23.9]} 6. c3 {[%clk 0:02:58.2]} 6... b5 {[%clk 0:02:23.2]} 7.
Bc2 {[%clk 0:02:56.3]} 7... d5 {[%clk 0:02:17.5]} 8. d4 {[%clk 0:02:47.6]} 8...
dxe4 {[%clk 0:02:08.9]} 9. dxc5 {[%clk 0:02:47.5]} 9... Qxd1 {[%clk 0:01:58.7]}
10. Bxd1 {[%clk 0:02:45.9]} 10... exf3 {[%clk 0:01:59.1]} 11. Bxf3 {[%clk
0:02:47.8]} 11... Bb7 {[%clk 0:01:59.5]} 12. Re1 {[%clk 0:02:44.3]} 12... O-O-O
{[%clk 0:01:56.4]} 13. Bg5 {[%clk 0:02:42.3]} 13... h6 {[%clk 0:01:50.8]} 14.
Bxf6 {[%clk 0:02:38.2]} 14... gxf6 {[%clk 0:01:51.4]} 15. Na3 {[%clk 0:02:37.2]}
15... Rd2 {[%clk 0:01:49.4]} 16. Re2 {[%clk 0:02:31.5]} 16... Rhd8 {[%clk
0:01:49]} 17. Kf1 {[%clk 0:02:27.5]} 17... f5 {[%clk 0:01:22.5]} 18. Nc2 {[%clk
0:02:15.8]} 18... e4 {[%clk 0:01:10.6]} 19. Bh5 {[%clk 0:02:16.5]} 19... Ne5
{[%clk 0:01:08.5]} 20. Nd4 {[%clk 0:02:14.4]} 20... Rxe2 {[%clk 0:01:08.9]} 21.
Kxe2 {[%clk 0:01:59.9]} 21... f4 {[%clk 0:01:10]} 22. b4 {[%clk 0:01:54.3]}
22... Bd5 {[%clk 0:01:07.6]} 23. a4 {[%clk 0:01:43.7]} 23... Kb7 {[%clk
0:00:49.5]} 24. axb5 {[%clk 0:01:43.3]} 24... axb5 {[%clk 0:00:50.4]} 25. Kf1
{[%clk 0:01:16.2]} 25... Rg8 {[%clk 0:00:47.7]} 26. Be2 {[%clk 0:01:03.2]} 26...
c6 {[%clk 0:00:47.9]} 27. f3 {[%clk 0:00:53.4]} 27... e3 {[%clk 0:00:47]} 28.
Nf5 {[%clk 0:00:54.1]} 28... h5 {[%clk 0:00:44.1]} 29. Nd6+ {[%clk 0:00:31.6]}
29... Kb8 {[%clk 0:00:43.6]} 30. Ra6 {[%clk 0:00:33]} 30... Rd8 {[%clk
0:00:28.7]} 31. Rb6+ {[%clk 0:00:29.6]} 31... Ka8 {[%clk 0:00:26.6]} 32. Ra6+
{[%clk 0:00:30.7]} 32... Kb8 {[%clk 0:00:27.9]} 33. Rb6+ {[%clk 0:00:32.3]}
33... Ka7 {[%clk 0:00:29.1]} 34. Rb7+ {[%clk 0:00:29.6]} 34... Ka8 {[%clk
0:00:30.3]} 35. Re7 {[%clk 0:00:31]} 35... Nc4 {[%clk 0:00:31.3]} 36. Bxc4
{[%clk 0:00:17.8]} 36... Bxc4+ {[%clk 0:00:32.5]} 37. Ke1 {[%clk 0:00:11.6]}
37... Rg8 {[%clk 0:00:33.4]} 38. g3 {[%clk 0:00:10.5]} 38... fxg3 {[%clk
0:00:34]} 39. hxg3 {[%clk 0:00:12.4]} 39... Rxg3 {[%clk 0:00:35]} 40. Nxc4
{[%clk 0:00:08.3]} 40... bxc4 {[%clk 0:00:35.7]} 41. Ke2 {[%clk 0:00:09.6]}
41... Rg7 {[%clk 0:00:34.2]} 42. Re8+ {[%clk 0:00:07]} 42... Kb7 {[%clk
0:00:34.6]} 43. Rh8 {[%clk 0:00:08.9]} 43... Rg5 {[%clk 0:00:32.8]} 44. Kxe3
{[%clk 0:00:08]} 44... Rd5 {[%clk 0:00:30]} 45. Ke4 {[%clk 0:00:06.7]} 45... Rd3
{[%clk 0:00:29.9]} 46. Rxh5 {[%clk 0:00:05]} 46... Rxc3 {[%clk 0:00:30.6]} 47.
Rf5 {[%clk 0:00:06.4]} 47... Rd3 {[%clk 0:00:30.2]} 48. Rxf7+ {[%clk 0:00:06.2]}
48... Ka6 {[%clk 0:00:31.4]} 49. Rc7 {[%clk 0:00:07.2]} 49... Kb5 {[%clk
0:00:28.6]} 50. Rb7+ {[%clk 0:00:08.5]} 50... Ka4 {[%clk 0:00:29.8]} 51. Rb6
{[%clk 0:00:07.8]} 51... Rd1 {[%clk 0:00:30.7]} 52. Rxc6 {[%clk 0:00:08]} 52...
c3 {[%clk 0:00:31.9]} 53. Ra6+ {[%clk 0:00:09]} 53... Kb3 {[%clk 0:00:32.6]} 0-1

[Event "*** Titled Tuesday 3|2 Blitz"]
[Site "Chess.com"]
[Date "2017.06.06"]
[Round "5"]
[White "FastChance"]
[Black "PaulfromSPb"]
[Result "0-1"]
[WhiteElo "2479"]
[BlackElo "2582"]
[TimeControl "180+2"]
[EndTime "14:53:48 PDT"]
[Termination "PaulfromSPb won by resignation"]

1. d4 {[%clk 0:03:01.9]} 1... Nf6 {[%clk 0:02:59.3]} 2. Bf4 {[%clk 0:03:03]}
2... d6 {[%clk 0:02:59.7]} 3. e3 {[%clk 0:03:04.3]} 3... Nbd7 {[%clk 0:03:00.1]}
4. Nf3 {[%clk 0:03:04.6]} 4... Nh5 {[%clk 0:03:00.1]} 5. Bg5 {[%clk 0:03:04.6]}
5... h6 {[%clk 0:02:59.9]} 6. Bh4 {[%clk 0:03:06]} 6... g5 {[%clk 0:02:59.4]} 7.
Nfd2 {[%clk 0:03:07.1]} 7... Ndf6 {[%clk 0:02:57]} 8. Be2 {[%clk 0:03:05.6]}
8... gxh4 {[%clk 0:02:51.4]} 9. Bxh5 {[%clk 0:03:04.2]} 9... Nxh5 {[%clk
0:02:46.5]} 10. Qxh5 {[%clk 0:03:04.4]} 10... Rg8 {[%clk 0:02:47.7]} 11. g3
{[%clk 0:02:59.9]} 11... h3 {[%clk 0:02:44.7]} 12. Nc3 {[%clk 0:02:59.1]} 12...
c6 {[%clk 0:02:44.1]} 13. Qe2 {[%clk 0:02:54.4]} 13... Be6 {[%clk 0:02:33.4]}
14. O-O-O {[%clk 0:02:38.9]} 14... Bg7 {[%clk 0:02:34.3]} 15. Qd3 {[%clk
0:02:38.1]} 15... Qa5 {[%clk 0:02:33.5]} 16. Kb1 {[%clk 0:02:36.7]} 16... O-O-O
{[%clk 0:02:33.1]} 17. Nb3 {[%clk 0:02:32.2]} 17... Qh5 {[%clk 0:02:32.5]} 18.
e4 {[%clk 0:02:24.9]} 18... Kb8 {[%clk 0:02:27.7]} 19. Rhf1 {[%clk 0:02:20.6]}
19... Bg4 {[%clk 0:02:27.5]} 20. f3 {[%clk 0:02:20.7]} 20... Bd7 {[%clk
0:02:28]} 21. Ne2 {[%clk 0:02:17.8]} 21... f5 {[%clk 0:02:23.2]} 22. Nf4 {[%clk
0:02:08.2]} 22... fxe4 {[%clk 0:02:22.1]} 23. fxe4 {[%clk 0:01:58.6]} 23... Qg5
{[%clk 0:02:13.4]} 24. Nd2 {[%clk 0:01:55.6]} 24... Qa5 {[%clk 0:02:03.3]} 25.
Nf3 {[%clk 0:01:43]} 25... Bg4 {[%clk 0:02:00.7]} 26. Rde1 {[%clk 0:01:41.6]}
26... e5 {[%clk 0:02:01.3]} 27. Ne2 {[%clk 0:01:38.3]} 27... exd4 {[%clk
0:01:59]} 28. Nfxd4 {[%clk 0:01:33.7]} 28... d5 {[%clk 0:01:55.5]} 29. exd5
{[%clk 0:01:30.1]} 29... Qxd5 {[%clk 0:01:54.9]} 30. Rf4 {[%clk 0:00:59.8]}
30... h5 {[%clk 0:01:46.4]} 31. Nc3 {[%clk 0:00:35.5]} 31... Qg2 {[%clk
0:01:36.1]} 32. Qc4 {[%clk 0:00:34.1]} 32... Qd2 {[%clk 0:01:30.7]} 33. Nxc6+
{[%clk 0:00:10.7]} 33... bxc6 {[%clk 0:01:30.2]} 34. Ref1 {[%clk 0:00:08.4]}
34... Bxc3 {[%clk 0:01:27.9]} 35. bxc3 {[%clk 0:00:08.4]} 35... Qd5 {[%clk
0:01:25.6]} 36. Qa6 {[%clk 0:00:05.2]} 36... Qb5+ {[%clk 0:01:26.2]} 37. Rb4
{[%clk 0:00:05]} 37... Be2 {[%clk 0:01:22.9]} 38. Rxb5+ {[%clk 0:00:05.7]} 38...
Bxb5 {[%clk 0:01:23.5]} 39. Qa3 {[%clk 0:00:04.1]} 39... Bxf1 {[%clk 0:01:23.5]}
40. Qb4+ {[%clk 0:00:05.4]} 40... Ka8 {[%clk 0:01:24.2]} 41. Qe7 {[%clk
0:00:06]} 41... Bc4 {[%clk 0:01:13.2]} 42. Qc7 {[%clk 0:00:05.9]} 42... Rc8
{[%clk 0:01:12.4]} 43. Qf4 {[%clk 0:00:06.3]} 43... Ba6 {[%clk 0:01:01.8]} 44.
Qa4 {[%clk 0:00:05.1]} 44... Bb5 {[%clk 0:00:58.2]} 45. Qh4 {[%clk 0:00:06]}
45... Rb8 {[%clk 0:00:57.5]} 46. Kc1 {[%clk 0:00:06.5]} 46... Rgd8 {[%clk
0:00:56.8]} 47. c4 {[%clk 0:00:06.7]} 47... Ba6 {[%clk 0:00:54.6]} 48. c3 {[%clk
0:00:04.7]} 48... Bc8 {[%clk 0:00:46.1]} 49. Qe4 {[%clk 0:00:05]} 49... Rb6
{[%clk 0:00:41.2]} 50. Qh4 {[%clk 0:00:04]} 50... Rh8 {[%clk 0:00:31.1]} 51. Qf6
{[%clk 0:00:04.3]} 51... Re8 {[%clk 0:00:31.1]} 52. Qg6 {[%clk 0:00:04.4]} 52...
Re2 {[%clk 0:00:29.6]} 53. Qxh5 {[%clk 0:00:03]} 53... Rxh2 {[%clk 0:00:29]} 54.
Qe8 {[%clk 0:00:04.1]} 54... Kb7 {[%clk 0:00:29.7]} 55. Qe7+ {[%clk 0:00:05]}
55... Kb8 {[%clk 0:00:29.6]} 56. Qd6+ {[%clk 0:00:06.4]} 56... Kb7 {[%clk
0:00:30.7]} 57. c5 {[%clk 0:00:07.2]} 57... Rh1+ {[%clk 0:00:28.4]} 58. Kd2
{[%clk 0:00:08]} 58... Rb2+ {[%clk 0:00:29]} 59. Ke3 {[%clk 0:00:09.5]} 59...
Re1+ {[%clk 0:00:28.5]} 60. Kf4 {[%clk 0:00:10.6]} 60... h2 {[%clk 0:00:29.4]}
61. Qh6 {[%clk 0:00:08.6]} 61... Rf2+ {[%clk 0:00:26.3]} 62. Kg5 {[%clk
0:00:09.6]} 62... Re5+ {[%clk 0:00:27]} 0-1

[Event "*** Titled Tuesday 3|2 Blitz"]
[Site "Chess.com"]
[Date "2017.06.06"]
[Round "5"]
[White "Federtiu"]
[Black "Indianlad"]
[Result "1/2-1/2"]
[WhiteElo "2440"]
[BlackElo "2586"]
[TimeControl "180+2"]
[EndTime "14:53:53 PDT"]
[Termination "Game drawn - timeout vs insufficient material"]

1. c4 {[%clk 0:03:02]} 1... e5 {[%clk 0:03:00.6]} 2. Nc3 {[%clk 0:03:02.6]} 2...
Nf6 {[%clk 0:03:01.6]} 3. Nf3 {[%clk 0:03:03.2]} 3... Nc6 {[%clk 0:03:03.1]} 4.
e3 {[%clk 0:03:04.2]} 4... Bb4 {[%clk 0:02:59.7]} 5. Qc2 {[%clk 0:03:04.4]} 5...
Bxc3 {[%clk 0:03:00.3]} 6. Qxc3 {[%clk 0:03:05.2]} 6... Qe7 {[%clk 0:03:01.4]}
7. Be2 {[%clk 0:02:53.3]} 7... d5 {[%clk 0:02:55.7]} 8. d4 {[%clk 0:02:18.1]}
8... Ne4 {[%clk 0:02:50.8]} 9. Qb3 {[%clk 0:02:09.1]} 9... dxc4 {[%clk
0:02:51.4]} 10. Bxc4 {[%clk 0:02:07.5]} 10... exd4 {[%clk 0:02:50.6]} 11. O-O
{[%clk 0:02:04.5]} 11... O-O {[%clk 0:02:39.3]} 12. Bd5 {[%clk 0:01:43.5]} 12...
Be6 {[%clk 0:02:32.5]} 13. Bxe6 {[%clk 0:01:13.3]} 13... Qxe6 {[%clk 0:02:30.7]}
14. Qxe6 {[%clk 0:01:14.3]} 14... fxe6 {[%clk 0:02:31]} 15. exd4 {[%clk
0:01:16.2]} 15... Rad8 {[%clk 0:02:28.8]} 16. Re1 {[%clk 0:01:13.9]} 16... Nxd4
{[%clk 0:02:15.6]} 17. Nxd4 {[%clk 0:01:05]} 17... Rxd4 {[%clk 0:02:15.4]} 18.
Be3 {[%clk 0:01:05.9]} 18... Rc4 {[%clk 0:02:13.6]} 19. Bxa7 {[%clk 0:00:39.6]}
19... Nd6 {[%clk 0:02:11.2]} 20. Be3 {[%clk 0:00:35.8]} 20... Rc2 {[%clk
0:02:10.7]} 21. Rec1 {[%clk 0:00:31]} 21... Rxc1+ {[%clk 0:02:08.6]} 22. Rxc1
{[%clk 0:00:32.1]} 22... c6 {[%clk 0:02:06.9]} 23. Bc5 {[%clk 0:00:21.5]} 23...
Rd8 {[%clk 0:02:08.1]} 24. Rd1 {[%clk 0:00:20.5]} 24... Nf7 {[%clk 0:02:09.2]}
25. Rxd8+ {[%clk 0:00:21.7]} 25... Nxd8 {[%clk 0:02:11.1]} 26. f3 {[%clk
0:00:23.5]} 26... Kf7 {[%clk 0:02:09.6]} 27. Kf2 {[%clk 0:00:24.9]} 27... e5
{[%clk 0:02:10.8]} 28. Ke3 {[%clk 0:00:25.5]} 28... Ke6 {[%clk 0:02:11.9]} 29.
b3 {[%clk 0:00:18.9]} 29... Kd5 {[%clk 0:02:12.6]} 30. Be7 {[%clk 0:00:16.6]}
30... Ne6 {[%clk 0:02:14.5]} 31. g4 {[%clk 0:00:12.8]} 31... Nd4 {[%clk
0:02:15.6]} 32. h4 {[%clk 0:00:12.3]} 32... c5 {[%clk 0:02:14.9]} 33. h5 {[%clk
0:00:11.3]} 33... b5 {[%clk 0:02:16]} 34. a4 {[%clk 0:00:05.3]} 34... b4 {[%clk
0:02:01.9]} 35. a5 {[%clk 0:00:02.7]} 35... Nxb3 {[%clk 0:02:01.9]} 36. a6
{[%clk 0:00:03.2]} 36... Kc6 {[%clk 0:02:03.8]} 37. Bf8 {[%clk 0:00:02.1]} 37...
g6 {[%clk 0:02:03.9]} 38. Ke4 {[%clk 0:00:03.4]} 38... Nd2+ {[%clk 0:01:57.8]}
39. Kd3 {[%clk 0:00:03.1]} 39... Nxf3 {[%clk 0:01:58.4]} 40. Bxc5 {[%clk
0:00:04.6]} 40... b3 {[%clk 0:01:59.2]} 41. Kc3 {[%clk 0:00:05]} 41... Nh2
{[%clk 0:01:52.2]} 42. hxg6 {[%clk 0:00:04.3]} 42... hxg6 {[%clk 0:01:54.1]} 43.
g5 {[%clk 0:00:05.6]} 43... Nf3 {[%clk 0:01:55.1]} 44. Be3 {[%clk 0:00:06.9]}
44... b2 {[%clk 0:01:42.9]} 45. Kxb2 {[%clk 0:00:07.9]} 45... Nxg5 {[%clk
0:01:36.6]} 46. Bxg5 {[%clk 0:00:07.1]} 46... Kb6 {[%clk 0:01:37.9]} 47. Kc3
{[%clk 0:00:08.5]} 47... Kxa6 {[%clk 0:01:38.7]} 48. Kd3 {[%clk 0:00:10.4]}
48... e4+ {[%clk 0:01:38.6]} 49. Kxe4 {[%clk 0:00:12.3]} 49... Kb5 {[%clk
0:01:40.2]} 50. Ke5 {[%clk 0:00:14.2]} 1/2-1/2